bitfinex/quotes_SOLUSD_20230701
["timestamp","ask_amount","ask_price","bid_price","bid_amount"]
[1688225263593,5.4485165,18.404,18.389,23.002]
[1688225263888,5.4485165,18.402,18.389,23.002]
[1688225264073,20.0,18.401,18.389,23.002]
[1688225264275,20.0,18.403,18.389,23.002]
[1688225264474,0.89526191,18.402,18.389,23.002]
[1688225264692,4.06521463,18.403,18.389,23.002]
[1688225265492,59.06521463,18.403,18.389,23.002]
[1688225265795,4.06521463,18.401,18.389,23.002]
[1688225266289,4.06521463,18.401,18.39,24.66]
[1688225266488,107.914,18.413,18.39,24.66]
[1688225266489,6.29001997,18.405,18.393,82.203]
[1688225267193,8.1558097,18.409,18.393,82.203]
[1688225267694,31.1338097,18.409,18.393,82.203]
[1688225268097,55.0,18.408,18.393,82.203]
[1688225268293,8.1558097,18.407,18.393,82.203]
[1688225272893,55.0,18.406,18.393,82.203]
[1688225273092,8.1558097,18.405,18.393,82.203]
[1688225273302,55.0,18.406,18.393,82.203]
[1688225273490,55.0,18.407,18.393,82.203]
[1688225273689,3.20233062,18.406,18.393,82.203]
[1688225280812,3.20233062,18.406,18.394,55.0]
[1688225281110,3.20233062,18.409,18.397,82.184]
[1688225281310,55.0,18.409,18.397,82.184]
[1688225284614,77.977,18.409,18.397,82.184]
[1688225285309,77.977,18.409,18.397,22.992]
[1688225285516,0.99704684,18.408,18.397,22.992]
[1688225285714,23.97604684,18.408,18.397,22.992]
[1688225285915,55.0,18.407,18.397,22.992]
[1688225290816,22.977,18.41,18.397,22.992]
[1688225291120,55.0,18.409,18.397,22.992]
[1688225293022,55.0,18.409,18.397,33.82919922]
[1688225295622,55.0,18.409,18.398,10.83719922]
[1688225295824,55.0,18.409,18.401,22.987]
[1688225296126,55.0,18.41,18.401,22.987]
[1688225299521,55.0,18.411,18.401,22.987]
[1688225301817,153.2888,18.416,18.401,22.987]
[1688225301818,22.972,18.414,18.401,82.168]
[1688225302018,22.17476862,18.413,18.401,93.00519922]
[1688225302326,20.0,18.413,18.401,93.00519922]
[1688225303027,55.0,18.412,18.401,93.00519922]
[1688225303228,20.0,18.411,18.401,93.00519922]
[1688225308948,77.974,18.412,18.401,93.00519922]
[1688225311464,77.974,18.412,18.401,22.987]
[1688225313022,1.62675269,18.411,18.401,22.987]
[1688225313228,22.978,18.409,18.401,22.987]
[1688225313943,22.976,18.411,18.401,22.987]
[1688225314246,55.0,18.41,18.401,22.987]
[1688225314452,55.0,18.412,18.401,22.987]
[1688225314453,22.973,18.413,18.401,22.987]
[1688225314637,27.76148447,18.417,18.402,75.0]
[1688225314828,1.09276108,18.416,18.406,22.981]
[1688225315033,22.968,18.417,18.406,22.981]
[1688225316938,55.0,18.416,18.406,22.981]
[1688225317649,22.966,18.419,18.406,22.981]
[1688225317850,55.0,18.418,18.406,22.981]
[1688225322555,22.963,18.421,18.406,22.981]
[1688225322851,3.12734148,18.42,18.412,82.119]
[1688225323054,20.0,18.425,18.412,82.119]
[1688225323256,22.954,18.428,18.418,22.966]
[1688225323845,24.75,18.43,18.418,22.966]
[1688225324159,47.702,18.43,18.418,22.966]
[1688225324345,22.952,18.43,18.418,22.966]
[1688225325648,42.95,18.432,18.418,22.966]
[1688225326657,20.0,18.432,18.418,22.966]
[1688225326856,20.0,18.433,18.418,22.966]
[1688225327545,42.948,18.433,18.418,22.966]
[1688225328255,20.0,18.433,18.42,24.66]
[1688225328464,20.0,18.438,18.423,82.067]
[1688225328860,24.43,18.44,18.423,82.067]
[1688225328861,20.0,18.439,18.423,82.067]
[1688225329058,22.944,18.436,18.423,82.067]
[1688225329553,22.948,18.433,18.423,22.959]
[1688225329859,20.0,18.432,18.421,113.3126]
[1688225330061,22.952,18.43,18.421,113.3126]
[1688225330746,77.953,18.429,18.421,113.3126]
[1688225330954,22.953,18.429,18.421,113.3126]
[1688225332057,20.0,18.432,18.421,113.3126]
[1688225332262,55.0,18.431,18.421,113.3126]
[1688225332769,77.95,18.431,18.413,22.948]
[1688225332957,1.11339858,18.43,18.418,22.965]
[1688225333160,22.956,18.427,18.418,22.965]
[1688225333448,22.958,18.425,18.417,22.967]
[1688225335753,55.0,18.426,18.417,22.967]
[1688225336066,77.957,18.426,18.417,22.967]
[1688225338367,77.957,18.426,18.415,22.969]
[1688225338768,77.957,18.426,18.409,59.152]
[1688225338967,77.957,18.426,18.41,20.0]
[1688225339754,77.957,18.426,18.415,22.97]
[1688225341858,20.0,18.425,18.415,22.97]
[1688225342065,22.963,18.421,18.411,22.974]
[1688225342468,55.0,18.42,18.411,22.974]
[1688225342666,22.966,18.419,18.411,22.974]
[1688225342868,55.0,18.418,18.411,22.974]
[1688225343367,77.966,18.418,18.411,22.974]
[1688225344083,77.966,18.418,18.404,98.4326]
[1688225344576,77.966,18.418,18.408,22.978]
[1688225345972,55.0,18.418,18.408,22.978]
[1688225346179,55.0,18.419,18.408,22.978]
[1688225347377,77.965,18.419,18.408,22.978]
[1688225348863,55.0,18.419,18.408,22.978]
[1688225351777,77.965,18.419,18.408,22.978]
[1688225354082,77.965,18.419,18.406,22.98]
[1688225358479,77.965,18.419,18.401,94.1295]
[1688225358683,1.12844911,18.418,18.406,22.98]
[1688225358870,22.971,18.415,18.406,22.98]
[1688225359078,55.0,18.414,18.406,22.98]
[1688225361468,22.968,18.417,18.406,22.98]
[1688225361988,55.0,18.416,18.406,22.98]
[1688225362381,22.966,18.419,18.406,22.98]
[1688225363483,55.0,18.418,18.406,22.98]
[1688225364282,77.966,18.418,18.406,22.98]
[1688225364874,55.0,18.418,18.406,22.98]
[1688225365182,77.965,18.419,18.406,22.98]
[1688225365984,22.965,18.419,18.406,22.98]
[1688225366877,55.0,18.418,18.406,22.98]
[1688225368195,77.967,18.418,18.406,22.98]
[1688225370377,55.0,18.418,18.406,22.98]
[1688225370584,22.966,18.418,18.406,22.98]
[1688225370790,55.0,18.417,18.406,22.98]
[1688225371687,55.0,18.417,18.406,33.81719922]
[1688225372091,22.962,18.422,18.407,10.83719922]
[1688225372481,22.962,18.422,18.411,22.974]
[1688225373492,55.0,18.421,18.411,22.974]
[1688225373795,22.964,18.42,18.411,22.974]
[1688225373990,55.0,18.419,18.411,22.974]
[1688225376997,77.965,18.419,18.411,22.974]
[1688225378192,77.965,18.419,18.409,22.977]
[1688225379099,77.965,18.419,18.407,22.979]
[1688225380700,137.088,18.419,18.405,10.83719922]
[1688225381400,137.088,18.419,18.406,22.98]
[1688225383090,77.965,18.419,18.406,22.98]
[1688225388412,77.965,18.419,18.404,22.983]
[1688225388592,22.973,18.413,18.402,22.986]
[1688225388788,22.973,18.413,18.4,22.988]
[1688225389006,75.0,18.412,18.4,22.988]
[1688225389211,22.978,18.409,18.4,22.988]
[1688225389419,55.0,18.408,18.4,22.988]
[1688225391210,77.98,18.408,18.398,22.99]
[1688225392795,77.98,18.408,18.397,22.991]
[1688225395105,22.98,18.408,18.397,22.991]
[1688225395495,55.0,18.407,18.397,22.991]
[1688225395791,59.149,18.411,18.397,22.991]
[1688225395792,22.976,18.411,18.397,22.991]
[1688225397011,22.973,18.413,18.402,22.986]
[1688225397207,20.0,18.412,18.402,22.986]
[1688225398309,55.0,18.411,18.402,22.986]
[1688225399219,22.972,18.414,18.402,22.986]
[1688225399398,22.972,18.414,18.403,20.0]
[1688225399597,22.972,18.414,18.406,22.981]
[1688225399800,22.972,18.414,18.403,20.0]
[1688225400007,22.972,18.414,18.401,20.0]
[1688225400516,55.0,18.413,18.403,22.984]
[1688225400709,22.977,18.41,18.401,42.987]
[1688225400910,77.978,18.409,18.399,22.989]
[1688225401102,22.983,18.405,18.397,22.991]
[1688225402602,55.0,18.404,18.397,22.991]
[1688225402807,77.984,18.404,18.397,22.991]
[1688225404308,55.0,18.404,18.397,22.991]
[1688225404510,24.62,18.41,18.397,22.991]
[1688225404825,55.0,18.409,18.397,22.991]
[1688225405418,77.978,18.409,18.397,22.991]
[1688225408911,22.978,18.409,18.397,22.991]
[1688225411614,55.0,18.408,18.397,22.991]
[1688225411814,22.982,18.406,18.397,22.991]
[1688225412027,55.0,18.405,18.397,22.991]
[1688225415520,22.979,18.408,18.397,22.991]
[1688225415722,22.977,18.41,18.397,22.991]
[1688225417530,22.979,18.408,18.397,22.991]
[1688225418825,55.0,18.407,18.397,22.991]
[1688225419130,22.981,18.407,18.397,22.991]
[1688225419531,55.0,18.406,18.397,22.991]
[1688225424943,22.974,18.412,18.397,22.991]
[1688225425119,22.971,18.415,18.4,24.42]
[1688225425323,22.968,18.417,18.405,22.982]
[1688225427139,77.969,18.416,18.405,22.982]
[1688225427445,22.969,18.416,18.405,22.982]
[1688225428738,55.0,18.415,18.405,22.982]
[1688225430345,77.97,18.415,18.405,22.982]
[1688225433446,55.0,18.415,18.405,22.982]
[1688225433638,55.0,18.416,18.405,22.982]
[1688225435629,24.42,18.421,18.405,22.982]
[1688225435827,3.08895068,18.422,18.405,22.982]
[1688225436741,29.71454068,18.422,18.405,22.982]
[1688225436941,77.962,18.421,18.405,22.982]
[1688225438740,22.962,18.421,18.405,22.982]
[1688225438942,22.962,18.421,18.406,55.0]
[1688225439247,22.962,18.421,18.41,22.976]
[1688225439744,45.921,18.425,18.41,47.596]
[1688225439950,22.962,18.425,18.411,75.0]
[1688225440255,99.3914,18.434,18.415,82.106]
[1688225440549,27.24243946,18.433,18.415,82.106]
[1688225440933,50.18943946,18.433,18.415,82.106]
[1688225441131,73.15143946,18.433,18.416,92.7336]
[1688225441346,65.909,18.433,18.421,22.962]
[1688225441649,55.0,18.432,18.421,22.962]
[1688225441851,22.953,18.429,18.421,22.962]
[1688225442051,42.962,18.433,18.421,22.962]
[1688225442052,65.911,18.433,18.421,22.962]
[1688225442352,42.949,18.433,18.421,22.962]
[1688225443859,22.949,18.433,18.422,20.0]
[1688225444056,22.946,18.435,18.425,22.957]
[1688225444353,24.76,18.44,18.425,22.957]
[1688225444657,22.945,18.435,18.425,22.957]
[1688225446448,55.0,18.434,18.425,22.957]
[1688225446641,77.946,18.434,18.425,22.957]
[1688225447246,55.0,18.434,18.425,22.957]
[1688225447455,55.0,18.435,18.425,22.957]
[1688225452260,55.0,18.436,18.425,22.957]
[1688225457149,96.3097,18.444,18.425,33.79419922]
[1688225457353,21.99086218,18.443,18.425,33.79419922]
[1688225457553,20.0,18.443,18.426,10.83719922]
[1688225457753,22.938,18.441,18.431,22.95]
[1688225459759,55.0,18.44,18.431,22.95]
[1688225460060,77.94,18.44,18.431,22.95]
[1688225470868,77.94,18.44,18.424,163.70039922]
[1688225471181,77.94,18.44,18.428,22.953]
[1688225480861,102.33,18.44,18.428,22.953]
[1688225482979,102.33,18.44,18.426,22.955]
[1688225483170,3.66265339,18.439,18.42,24.3]
[1688225483487,3.66265339,18.439,18.41,24.3]
[1688225483488,24.39,18.43,18.41,24.3]
[1688225483794,22.959,18.424,18.414,22.971]
[1688225483965,55.0,18.423,18.414,22.971]
[1688225484280,22.962,18.422,18.414,22.971]
[1688225484472,55.0,18.421,18.414,22.971]
[1688225486384,22.954,18.428,18.414,33.80819922]
[1688225486570,55.93352566,18.427,18.414,33.80819922]
[1688225486769,55.0,18.427,18.414,33.80819922]
[1688225487174,77.955,18.427,18.414,33.80819922]
[1688225487381,77.955,18.427,18.414,22.971]
[1688225487683,0.96040675,18.426,18.414,22.971]
[1688225487887,22.959,18.424,18.414,22.971]
[1688225488080,55.0,18.423,18.414,22.971]
[1688225489873,55.0,18.423,18.414,33.80819922]
[1688225490074,22.955,18.428,18.414,33.80819922]
[1688225490287,56.80962186,18.427,18.414,33.80819922]
[1688225490483,79.76462186,18.427,18.414,33.80819922]
[1688225490673,77.955,18.427,18.414,33.80819922]
[1688225490872,22.954,18.429,18.415,10.83719922]
[1688225491087,22.95,18.432,18.419,22.965]
[1688225491382,11.15203446,18.436,18.419,22.965]
[1688225491688,20.0,18.435,18.419,22.965]
[1688225491889,11.15203446,18.434,18.42,10.83719922]
[1688225492093,34.09903446,18.434,18.424,22.958]
[1688225492285,22.947,18.434,18.424,22.958]
[1688225492489,75.0,18.433,18.424,22.958]
[1688225493389,97.948,18.433,18.424,22.958]
[1688225493877,97.948,18.433,18.422,22.96]
[1688225497996,22.948,18.433,18.422,22.96]
[1688225498302,55.0,18.432,18.423,20.0]
[1688225498488,55.0,18.432,18.425,22.957]
[1688225503397,22.942,18.438,18.425,82.061]
[1688225503599,55.0,18.437,18.425,82.061]
[1688225507887,77.943,18.437,18.425,82.061]
[1688225508104,55.0,18.437,18.425,82.061]
[1688225508305,77.943,18.437,18.425,82.061]
[1688225509905,77.943,18.437,18.425,22.957]
[1688225512319,77.943,18.437,18.41,123.19]
[1688225512519,24.59,18.43,18.411,92.7535]
[1688225512818,22.956,18.427,18.416,22.968]
[1688225513201,77.956,18.426,18.416,22.968]
[1688225517214,55.0,18.426,18.416,22.968]
[1688225517412,177.5262,18.436,18.416,33.80519922]
[1688225517716,15.16138749,18.435,18.416,33.80519922]
[1688225518020,22.95,18.432,18.417,65.83719922]
[1688225518320,15.16138749,18.431,18.421,22.962]
[1688225518504,55.0,18.43,18.421,22.962]
[1688225518703,55.0,18.431,18.421,22.962]
[1688225519521,77.95,18.431,18.421,22.962]
[1688225520320,55.0,18.431,18.421,22.962]
[1688225520616,77.95,18.431,18.421,22.962]
[1688225521418,118.211,18.435,18.421,22.962]
[1688225521419,22.948,18.433,18.421,22.962]
[1688225521615,22.946,18.435,18.421,82.079]
[1688225521913,22.946,18.435,18.425,22.956]
[1688225522805,55.0,18.434,18.425,22.956]
[1688225523314,77.946,18.434,18.425,22.956]
[1688225524918,55.0,18.434,18.425,22.956]
[1688225525122,55.0,18.435,18.425,22.956]
[1688225525917,59.062,18.439,18.425,22.956]
[1688225525918,5.50752226,18.441,18.425,22.956]
[1688225526124,55.0,18.44,18.425,22.956]
[1688225526303,5.50752226,18.439,18.425,22.956]
[1688225526506,55.0,18.44,18.429,22.951]
[1688225527719,22.936,18.443,18.429,22.951]
[1688225528028,20.0,18.442,18.429,22.951]
[1688225529204,22.936,18.443,18.429,22.951]
[1688225529520,22.933,18.445,18.43,99.55]
[1688225529725,22.932,18.446,18.438,22.941]
[1688225530021,59.021,18.451,18.438,22.941]
[1688225530222,118.042,18.451,18.438,22.941]
[1688225530620,1.78404578,18.45,18.438,22.941]
[1688225531510,59.021,18.451,18.438,22.941]
[1688225531809,22.931,18.447,18.438,22.941]
[1688225532003,55.0,18.446,18.438,22.941]
[1688225533622,125.92811968,18.456,18.438,22.941]
[1688225533623,99.4416,18.456,18.438,22.941]
[1688225533829,26.29617763,18.455,18.438,22.941]
[1688225534326,26.29617763,18.455,18.438,113.7119]
[1688225534925,22.924,18.453,18.438,113.7119]
[1688225535114,20.0,18.452,18.438,113.7119]
[1688225535929,81.941,18.452,18.438,113.7119]
[1688225536226,141.013,18.452,18.438,113.7119]
[1688225536928,22.93,18.448,18.438,113.7119]
[1688225537131,22.932,18.446,18.438,22.941]
[1688225537514,55.0,18.445,18.434,95.4001]
[1688225537722,55.0,18.445,18.431,107.805]
[1688225537723,77.933,18.445,18.431,107.805]
[1688225537934,77.933,18.445,18.435,22.944]
[1688225541217,55.0,18.445,18.435,22.944]
[1688225541429,55.0,18.446,18.435,22.944]
[1688225542118,77.931,18.446,18.435,22.944]
[1688225548135,55.0,18.446,18.435,22.944]
[1688225548338,55.0,18.447,18.435,22.944]
[1688225550132,77.93,18.447,18.435,22.944]
[1688225550920,22.929,18.449,18.435,22.944]
[1688225552020,22.926,18.451,18.435,22.944]
[1688225552214,77.926,18.45,18.435,22.944]
[1688225557024,22.926,18.45,18.435,22.944]
[1688225558446,55.0,18.449,18.435,22.944]
[1688225558743,22.933,18.445,18.435,22.944]
[1688225559848,55.0,18.444,18.435,22.944]
[1688225560148,22.935,18.443,18.435,22.944]
[1688225560344,55.0,18.442,18.435,22.944]
[1688225561346,77.937,18.442,18.433,22.947]
[1688225561665,77.937,18.442,18.426,107.834]
[1688225561833,3.89656017,18.441,18.427,22.954]
[1688225562033,22.944,18.437,18.425,22.957]
[1688225562225,22.948,18.433,18.425,22.957]
[1688225562629,24.49,18.44,18.425,22.957]
[1688225562825,55.0,18.439,18.425,22.957]
[1688225563048,4.90110647,18.441,18.425,22.957]
[1688225563246,55.0,18.44,18.425,22.957]
[1688225563635,4.90110647,18.439,18.425,22.957]
[1688225563834,22.943,18.437,18.425,22.957]
[1688225564034,22.941,18.439,18.425,130.799]
[1688225564239,55.0,18.438,18.425,130.799]
[1688225564530,26.9513838,18.447,18.425,130.799]
[1688225564531,22.936,18.443,18.426,55.0]
[1688225564852,20.0,18.442,18.433,22.947]
[1688225565243,42.936,18.442,18.433,22.947]
[1688225565542,42.936,18.442,18.431,22.949]
[1688225565951,55.0,18.441,18.431,22.949]
[1688225568647,22.936,18.443,18.431,22.949]
[1688225568948,22.934,18.445,18.435,22.944]
[1688225569553,22.931,18.447,18.435,22.944]
[1688225572153,55.0,18.446,18.435,22.944]
[1688225572339,22.935,18.443,18.435,22.944]
[1688225574339,22.934,18.445,18.435,22.944]
[1688225574655,55.0,18.444,18.435,22.944]
[1688225576634,55.0,18.445,18.435,22.944]
[1688225576955,77.933,18.445,18.435,22.944]
[1688225581856,77.933,18.445,18.435,33.78119922]
[1688225584246,22.929,18.449,18.436,10.83719922]
[1688225584653,22.929,18.449,18.439,22.939]
[1688225585557,55.0,18.448,18.439,22.939]
[1688225586252,22.939,18.451,18.439,22.939]
[1688225586453,45.864,18.451,18.439,33.77619922]
[1688225586765,22.925,18.451,18.439,33.77619922]
[1688225588757,22.928,18.449,18.439,33.77619922]
[1688225588957,55.0,18.448,18.439,33.77619922]
[1688225590853,77.929,18.448,18.437,22.942]
[1688225591162,77.929,18.448,18.435,22.944]
[1688225591349,5.14726156,18.447,18.435,22.944]
[1688225591663,22.935,18.444,18.435,22.944]
[1688225591861,55.0,18.443,18.435,22.944]
[1688225592167,77.935,18.443,18.435,22.944]
[1688225592765,55.0,18.443,18.435,22.944]
[1688225593068,55.0,18.444,18.435,22.944]
[1688225593654,77.934,18.444,18.435,22.944]
[1688225595967,77.934,18.444,18.428,27.51766238]
[1688225596168,77.934,18.444,18.424,166.951]
[1688225596169,27.48938274,18.443,18.424,166.951]
[1688225596356,22.942,18.438,18.431,22.949]
[1688225596556,55.0,18.437,18.43,22.95]
[1688225597564,77.943,18.437,18.423,94.6899]
[1688225597767,77.943,18.437,18.421,22.961]
[1688225598067,9.03764491,18.436,18.422,20.0]
[1688225598273,22.949,18.432,18.423,22.959]
[1688225598654,55.0,18.431,18.423,22.959]
[1688225598972,77.95,18.431,18.423,22.959]
[1688225599473,77.95,18.431,18.422,20.0]
[1688225599666,77.95,18.431,18.418,20.0]
[1688225599871,55.0,18.431,18.418,20.0]
[1688225600065,55.0,18.431,18.423,22.96]
[1688225600860,22.948,18.433,18.423,22.96]
[1688225600861,55.0,18.432,18.423,22.96]
[1688225603177,22.942,18.438,18.423,22.96]
[1688225603380,4.79543815,18.439,18.423,22.96]
[1688225603677,52.27643815,18.439,18.423,22.96]
[1688225604477,4.79543815,18.439,18.423,22.96]
[1688225604976,10.11560486,18.441,18.429,22.952]
[1688225605368,22.936,18.442,18.429,22.952]
[1688225605574,20.0,18.443,18.429,22.952]
[1688225605779,20.0,18.443,18.433,22.946]
[1688225605969,42.935,18.443,18.433,22.946]
[1688225606157,83.524,18.45,18.433,22.946]
[1688225606354,22.934,18.444,18.433,22.946]
[1688225607567,77.935,18.443,18.433,22.946]
[1688225609676,55.0,18.443,18.433,22.946]
[1688225610066,22.929,18.449,18.433,22.946]
[1688225610271,3.92911914,18.448,18.433,22.946]
[1688225611269,26.85811914,18.448,18.433,22.946]
[1688225611470,22.929,18.448,18.433,22.946]
[1688225612483,55.70367194,18.447,18.433,22.946]
[1688225612666,77.93,18.447,18.433,22.946]
[1688225613689,55.0,18.447,18.433,22.946]
[1688225615067,55.0,18.448,18.433,22.946]
[1688225615384,1.81250023,18.447,18.433,22.946]
[1688225615563,22.926,18.451,18.433,22.946]
[1688225615764,22.926,18.451,18.432,107.797]
[1688225615765,2.90647668,18.45,18.439,22.94]
[1688225615965,22.926,18.451,18.439,22.94]
[1688225616183,22.927,18.45,18.439,22.94]
[1688225617062,55.0,18.449,18.439,22.94]
[1688225617272,77.928,18.449,18.439,22.94]
[1688225618988,22.926,18.451,18.439,22.94]
[1688225621187,77.927,18.45,18.439,22.94]
[1688225625668,22.925,18.452,18.44,24.59]
[1688225625874,22.922,18.454,18.443,22.934]
[1688225626075,22.92,18.456,18.443,22.934]
[1688225626776,22.919,18.456,18.443,22.934]
[1688225627979,58.991,18.461,18.443,22.934]
[1688225628181,58.991,18.461,18.442,166.791]
[1688225628182,22.916,18.459,18.448,22.928]
[1688225629483,55.0,18.458,18.448,22.928]
[1688225629676,22.92,18.455,18.446,22.93]
[1688225629881,55.0,18.454,18.446,22.93]
[1688225630081,77.922,18.454,18.446,22.93]
[1688225631499,55.0,18.454,18.446,22.93]
[1688225632086,55.0,18.454,18.446,81.967]
[1688225632286,3.64343527,18.461,18.446,81.967]
[1688225632603,3.64343527,18.461,18.446,189.686]
[1688225632910,20.0,18.463,18.451,81.942]
[1688225633494,42.909,18.464,18.451,81.942]
[1688225633993,45.815,18.466,18.451,81.942]
[1688225634187,22.907,18.466,18.456,22.919]
[1688225635801,22.907,18.466,18.454,22.92]
[1688225635980,17.407,18.466,18.454,22.92]
[1688225636491,55.0,18.465,18.454,22.92]
[1688225636795,22.909,18.464,18.454,22.92]
[1688225636996,55.0,18.463,18.454,22.92]
[1688225639700,55.0,18.464,18.454,22.92]
[1688225641719,77.909,18.464,18.454,22.92]
[1688225641907,22.914,18.46,18.447,59.032]
[1688225642079,77.916,18.459,18.451,22.924]
[1688225644202,77.916,18.459,18.448,22.929]
[1688225646191,55.0,18.459,18.448,22.929]
[1688225648296,77.915,18.459,18.448,22.929]
[1688225648805,77.915,18.459,18.446,22.931]
[1688225649004,2.71100613,18.458,18.443,10.83719922]
[1688225649221,22.922,18.454,18.443,33.77219922]
[1688225649408,55.0,18.453,18.443,33.77219922]
[1688225649892,55.0,18.454,18.444,10.83719922]
[1688225650092,22.916,18.459,18.447,22.929]
[1688225651508,55.0,18.458,18.447,22.929]
[1688225651709,77.917,18.458,18.447,22.929]
[1688225654008,77.917,18.458,18.444,10.83719922]
[1688225655393,77.917,18.458,18.441,59.052]
[1688225655592,22.925,18.451,18.44,22.938]
[1688225655990,22.928,18.449,18.44,22.938]
[1688225656195,77.929,18.448,18.44,22.938]
[1688225656391,22.929,18.448,18.44,22.938]
[1688225656613,55.0,18.447,18.44,22.938]
[1688225658102,22.925,18.452,18.44,22.938]
[1688225658299,55.0,18.451,18.44,22.938]
[1688225658503,77.926,18.451,18.44,22.938]
[1688225660817,77.926,18.451,18.438,22.941]
[1688225667800,22.924,18.453,18.438,22.941]
[1688225668004,107.647,18.459,18.435,107.78]
[1688225668005,22.921,18.455,18.443,22.934]
[1688225669019,55.0,18.454,18.443,22.934]
[1688225676223,22.919,18.457,18.443,22.934]
[1688225676430,55.0,18.456,18.443,22.934]
[1688225678139,22.919,18.456,18.443,22.934]
[1688225678433,75.0,18.455,18.433,107.794]
[1688225678735,22.926,18.45,18.442,22.936]
[1688225678937,55.0,18.449,18.442,22.936]
[1688225680724,77.928,18.449,18.442,22.936]
[1688225681324,22.928,18.449,18.442,22.936]
[1688225681636,55.0,18.448,18.442,22.936]
[1688225681831,22.926,18.451,18.442,22.936]
[1688225682015,22.924,18.453,18.442,22.936]
[1688225682215,22.92,18.456,18.447,22.929]
[1688225683426,55.0,18.455,18.447,22.929]
[1688225686139,55.0,18.456,18.447,22.929]
[1688225690042,55.0,18.457,18.447,22.929]
[1688225691945,55.0,18.458,18.447,22.929]
[1688225694946,55.0,18.459,18.447,22.929]
[1688225696144,77.915,18.459,18.447,22.929]
[1688225705035,55.0,18.459,18.447,22.929]
[1688225705238,55.0,18.46,18.447,22.929]
[1688225707457,77.914,18.46,18.447,22.929]
[1688225708356,55.0,18.46,18.447,22.929]
[1688225708557,77.913,18.461,18.447,22.929]
[1688225713866,24.5,18.46,18.447,22.929]
[1688225714050,22.919,18.457,18.447,22.929]
[1688225714252,55.0,18.456,18.447,22.929]
[1688225714559,77.92,18.456,18.447,22.929]
[1688225720985,55.0,18.456,18.447,22.929]